bitfinex-derivatives/quotes_ETHF0:USTF0_20260222
["timestamp","ask_amount","ask_price","bid_price","bid_amount"]
[1771721790971,0.46929825,1971.8,1971.1,0.59993579]
[1771721791172,0.21125894,1971.9,1971.1,0.59993579]
[1771721799679,0.2286809,1972.0,1971.1,0.59993579]
[1771721799880,0.46935152,1971.9,1971.1,0.59993579]
[1771721800181,0.22280248,1971.9,1971.1,0.59993579]
[1771721804886,0.00587842,1972.0,1971.1,0.59993579]
[1771721805087,0.4693791,1971.9,1971.1,0.59993579]
[1771721805290,0.00587842,1972.0,1971.1,0.59993579]
[1771721805488,0.4693788,1971.9,1971.1,0.59993579]
[1771721805688,0.2295023,1972.0,1971.1,0.59993579]
[1771721805890,0.46937882,1971.9,1971.1,0.59993579]
[1771721806086,0.2295023,1972.0,1971.1,0.59993579]
[1771721806288,0.46938012,1971.9,1971.1,0.59993579]
[1771721806486,0.2295023,1972.0,1971.1,0.59993579]
[1771721806686,0.46938017,1971.9,1971.1,0.59993579]
[1771721806985,0.2295023,1972.0,1971.1,0.59993579]
[1771721807181,0.46938017,1971.9,1971.1,0.59993579]
[1771721807387,0.2295023,1972.0,1971.1,0.59993579]
[1771721807588,0.46938345,1971.9,1971.1,0.59993579]
[1771721807788,0.2295023,1972.0,1971.1,0.59993579]
[1771721807989,0.46938345,1971.9,1971.1,0.59993579]
[1771721808189,0.2295023,1972.0,1971.1,0.59993579]
[1771721808389,0.46939118,1971.9,1971.1,0.59993579]
[1771721808590,0.2295023,1972.0,1971.1,0.59993579]
[1771721808792,0.46939117,1971.9,1971.1,0.59993579]
[1771721808988,0.2295023,1972.0,1971.1,0.59993579]
[1771721809189,0.46939117,1971.9,1971.1,0.59993579]
[1771721809488,0.2295023,1972.0,1971.1,0.59993579]
[1771721809689,0.46940219,1971.9,1971.1,0.59993579]
[1771721809892,0.2295023,1972.0,1971.1,0.59993579]
[1771721810090,0.46940219,1971.9,1971.1,0.59993579]
[1771721810290,0.2295023,1972.0,1971.1,0.59993579]
[1771721810490,0.46941856,1971.9,1971.1,0.59993579]
[1771721810682,0.2295023,1972.0,1971.1,0.59993579]
[1771721810884,0.46941856,1971.9,1971.1,0.59993579]
[1771721811087,0.2295023,1972.0,1971.1,0.59993579]
[1771721811294,0.46943898,1971.9,1971.1,0.59993579]
[1771721811496,0.2295023,1972.0,1971.1,0.59993579]
[1771721811695,0.46943339,1971.9,1971.1,0.59993579]
[1771721811897,0.2295023,1972.0,1971.1,0.59993579]
[1771721812096,0.46943765,1971.9,1971.1,0.59993579]
[1771721812294,0.2295023,1972.0,1971.1,0.59993579]
[1771721812589,0.46947054,1971.9,1971.1,0.59993579]
[1771721812786,0.2295023,1972.0,1971.1,0.59993579]
[1771721813094,0.46947067,1971.9,1971.1,0.59993579]
[1771721813297,0.2295023,1972.0,1971.1,0.59993579]
[1771721813491,0.46949596,1971.9,1971.1,0.59993579]
[1771721813691,0.2295023,1972.0,1971.1,0.59993579]
[1771721813995,0.46949598,1971.9,1971.1,0.59993579]
[1771721814196,0.2295023,1972.0,1971.1,0.59993579]
[1771721814398,0.46952956,1971.9,1971.1,0.59993579]
[1771721814701,0.2295023,1972.0,1971.1,0.59993579]
[1771721814997,0.46952941,1971.9,1971.1,0.59993579]
[1771721815198,0.2295023,1972.0,1971.1,0.59993579]
[1771721815396,0.46957416,1971.9,1971.1,0.59993579]
[1771721815598,0.2295023,1972.0,1971.1,0.59993579]
[1771721815789,0.46957426,1971.9,1971.1,0.59993579]
[1771721815989,0.2295023,1972.0,1971.1,0.59993579]
[1771721816191,0.46957421,1971.9,1971.1,0.59993579]
[1771721816390,0.2295023,1972.0,1971.1,0.59993579]
[1771721816698,0.46959657,1971.9,1971.1,0.59993579]
[1771721816900,0.2295023,1972.0,1971.1,0.59993579]
[1771721817194,0.22901575,1971.8,1971.1,0.59993579]
[1771721817596,0.00587842,1972.0,1971.1,0.59993579]
[1771721817597,0.22901575,1971.6,1971.1,0.59993579]
[1771721818500,0.00587842,1972.0,1971.1,0.59993579]
[1771721818701,0.22901575,1971.8,1971.1,0.59993579]
[1771721821203,0.22534988,1971.6,1971.1,0.59993579]
[1771721824100,0.22529164,1971.9,1971.1,0.59993579]
[1771721824301,6.75515852,1971.8,1971.1,0.59993579]
[1771721824495,0.22529164,1971.8,1971.1,0.59993579]
[1771721827804,0.22563247,1971.9,1971.1,0.59993579]
[1771721828004,0.46915508,1971.8,1971.1,0.59993579]
[1771721828205,0.22563247,1971.9,1971.1,0.59993579]
[1771721828405,0.46915346,1971.8,1971.1,0.59993579]
[1771721828606,0.22563247,1971.9,1971.1,0.59993579]
[1771721828806,0.69476997,1971.8,1971.1,0.59993579]
[1771721829007,0.22561257,1971.8,1971.1,0.59993579]
[1771721830804,0.23149098,1972.0,1971.1,0.59993579]
[1771721831007,6.75321615,1971.9,1971.1,0.59993579]
[1771721831209,0.22556634,1971.9,1971.1,0.59993579]
[1771721843114,0.46924085,1971.8,1971.1,0.59993579]
[1771721843412,0.22556634,1971.9,1971.1,0.59993579]
[1771721843616,0.46924774,1971.8,1971.1,0.59993579]
[1771721843915,0.22556634,1971.9,1971.1,0.59993579]
[1771721844115,0.46924787,1971.8,1971.1,0.59993579]
[1771721844317,0.22556634,1971.9,1971.1,0.59993579]
[1771721844511,0.46927314,1971.8,1971.1,0.59993579]
[1771721844713,0.22556634,1971.9,1971.1,0.59993579]
[1771721844913,0.46927314,1971.8,1971.1,0.59993579]
[1771721845111,0.22556634,1971.9,1971.1,0.59993579]
[1771721845315,0.46929852,1971.8,1971.1,0.59993579]
[1771721845617,0.22556634,1971.9,1971.1,0.59993579]
[1771721845816,0.46930358,1971.8,1971.1,0.59993579]
[1771721846016,0.22556634,1971.9,1971.1,0.59993579]
[1771721846218,0.46930353,1971.8,1971.1,0.59993579]
[1771721846420,0.22556634,1971.9,1971.1,0.59993579]
[1771721846620,0.46933837,1971.8,1971.1,0.59993579]
[1771721846820,0.22556634,1971.9,1971.1,0.59993579]
[1771721847020,0.69523506,1971.8,1971.1,0.59993579]
[1771721847319,0.2258954,1971.8,1971.1,0.59993579]
[1771721853835,0.00587842,1972.0,1971.1,0.59993579]
[1771721853836,0.22794908,1972.0,1971.1,0.59993579]
[1771721854031,6.52255309,1971.9,1971.1,0.59993579]
[1771721854228,0.46938212,1971.8,1971.1,0.59993579]
[1771721865442,0.00587842,1972.0,1971.1,0.59993579]
[1771721865644,0.58468027,1972.0,1971.1,0.59993579]
[1771721867038,0.00587842,1972.0,1971.1,0.59993579]
[1771721867239,0.00587842,1972.0,1971.3,0.56564103]
[1771721868038,0.57880185,1972.6,1971.3,0.56564103]
[1771721868245,0.57880185,1972.4,1971.3,0.56564103]
[1771721868942,0.58330132,1972.4,1971.3,0.56564103]
[1771721870443,0.58330132,1972.4,1971.5,0.56564103]
[1771721901371,0.60145172,1972.2,1971.5,0.56564103]
[1771721917588,0.00449947,1972.4,1971.5,0.56564103]
[1771721917799,0.00449947,1972.4,1971.7,0.57119706]
[1771721917988,0.55621662,1972.7,1971.9,0.56640518]
[1771721919094,0.56197807,1972.7,1971.9,0.56640518]
[1771721922083,0.00576145,1972.7,1971.9,0.56640518]
[1771721935301,0.00576145,1972.7,1972.1,0.56640518]
[1771721935502,0.00576145,1972.7,1972.1,0.57048078]
[1771721936900,0.56197807,1972.7,1972.1,0.57048078]
[1771721938001,0.56197807,1972.7,1972.1,0.0040756]
[1771721938204,0.56197807,1972.7,1972.1,0.57048078]
[1771721939099,0.56197807,1972.7,1972.1,0.0040756]
[1771721942108,0.56197807,1972.7,1972.1,0.57048078]
[1771721943302,0.00576145,1972.7,1972.1,0.57048078]
[1771721950814,4.24409497,1973.3,1972.1,0.57048078]
[1771721951011,0.5812612,1973.3,1972.3,0.54288819]
[1771721951716,0.5812612,1973.3,1972.5,0.5632967]
[1771721951916,0.58735924,1973.3,1972.5,0.5632967]
[1771721960422,0.58735924,1973.3,1972.3,0.5632967]
[1771721963021,0.54789336,1973.1,1972.3,0.5632967]
[1771721976535,0.54789336,1972.9,1972.3,0.5632967]
[1771721976833,0.54789336,1973.2,1972.3,0.5632967]
[1771721977132,0.54789336,1973.0,1972.3,0.5632967]
[1771721982240,0.54789336,1973.0,1972.4,0.57642504]
[1771721993853,0.54548397,1973.2,1972.4,0.57642504]
[1771721994053,1.00837473,1973.1,1972.4,0.57642504]
[1771721994250,0.54548397,1973.1,1972.4,0.57642504]
[1771721995751,0.54548397,1973.2,1972.4,0.57642504]
[1771721996056,0.55158201,1973.3,1972.7,0.57642504]
[1771721997354,0.00609804,1973.3,1972.7,0.57642504]
[1771722000254,0.55158201,1973.3,1972.7,0.57642504]
[1771722000848,0.00609804,1973.3,1972.7,0.57642504]
[1771722001455,0.54548397,1973.5,1972.7,0.57642504]
[1771722001759,0.54548397,1973.7,1972.8,0.57642504]
[1771722001952,4.24899716,1973.9,1972.8,0.57642504]
[1771722001953,0.54548397,1973.5,1972.8,0.57642504]
[1771722002547,0.54976589,1973.5,1972.8,0.57642504]
[1771722002955,0.54976589,1973.5,1972.6,0.57642504]
[1771722002956,0.54548397,1973.3,1972.6,0.57642504]
[1771722032187,0.54548397,1973.3,1972.6,8.54804724]
[1771722032386,0.54548397,1973.3,1972.7,0.56792078]
[1771722036588,0.54316174,1973.4,1972.7,0.56792078]
[1771722041395,0.00428192,1973.5,1972.7,0.56792078]
[1771722041593,0.00428192,1973.5,1972.9,0.56184445]
[1771722042298,0.59073537,1973.5,1972.9,0.56184445]
[1771722043096,0.59073537,1973.5,1972.7,8.53346665]
[1771722043695,0.59073537,1973.5,1972.8,0.56184445]
[1771722044496,0.58645345,1973.3,1972.8,0.56184445]
[1771722052704,0.58645345,1973.3,1972.7,0.56184445]
[1771722066915,0.59073537,1973.5,1972.7,8.53346665]
[1771722067214,0.46673487,1973.4,1972.8,0.56184445]
[1771722067415,0.59073537,1973.5,1972.8,0.56184445]
[1771722067614,0.46673509,1973.4,1972.8,0.56184445]
[1771722067816,0.59073537,1973.5,1972.8,0.56184445]
[1771722068016,0.46673688,1973.4,1972.8,0.56184445]
[1771722068217,0.59073537,1973.5,1972.8,0.56184445]
[1771722068412,0.46673238,1973.4,1972.8,0.56184445]
[1771722068606,0.59073537,1973.5,1972.8,0.56184445]
[1771722068811,0.46673238,1973.4,1972.8,0.56184445]
[1771722069012,0.59073537,1973.5,1972.8,0.56184445]
[1771722069211,0.46673238,1973.4,1972.8,0.56184445]
[1771722069411,0.59073537,1973.5,1972.8,0.56184445]
[1771722069617,0.46672623,1973.4,1972.8,0.56184445]
[1771722069816,0.59073537,1973.5,1972.8,0.56184445]
[1771722070019,0.46672615,1973.4,1972.8,0.56184445]
[1771722070221,0.59073537,1973.5,1972.8,0.56184445]
[1771722070514,0.46672175,1973.4,1972.8,0.56184445]
[1771722070715,0.59073537,1973.5,1972.8,0.56184445]
[1771722070917,0.4667217,1973.4,1972.8,0.56184445]
[1771722071109,0.59073537,1973.5,1972.8,0.56184445]
[1771722071312,0.46673428,1973.4,1972.8,0.56184445]
[1771722071515,0.59073537,1973.5,1972.8,0.56184445]
[1771722071716,0.46672003,1973.4,1972.8,0.56184445]
[1771722071920,0.59073537,1973.5,1972.8,0.56184445]
[1771722072218,0.46671995,1973.4,1972.8,0.56184445]
[1771722072418,0.59073537,1973.5,1972.8,0.56184445]
[1771722072718,0.46678759,1973.4,1972.8,0.56184445]
[1771722072919,0.59073537,1973.5,1972.8,0.56184445]
[1771722073115,0.46678902,1973.4,1972.8,0.56184445]
[1771722073314,0.59073537,1973.5,1972.8,0.56184445]
[1771722073519,0.46678258,1973.4,1972.8,0.56184445]
[1771722073714,0.59073537,1973.5,1972.8,0.56184445]
[1771722074018,0.46678252,1973.4,1972.8,0.56184445]
[1771722074317,0.59073537,1973.5,1972.8,0.56184445]
[1771722074519,0.46677579,1973.4,1972.8,0.56184445]
[1771722074719,0.59073537,1973.5,1972.8,0.56184445]
[1771722074920,0.46677589,1973.4,1972.8,0.56184445]
[1771722075119,0.59073537,1973.5,1972.8,0.56184445]
[1771722076713,0.00428192,1973.5,1972.8,0.56184445]
[1771722077120,0.00428192,1973.5,1972.9,0.60194557]
[1771722077319,0.00428192,1973.5,1972.9,8.57356777]
[1771722077623,0.56472954,1973.8,1973.1,0.60194557]
[1771722078013,0.56472954,1973.8,1973.1,8.57356777]
[1771722078322,0.56472954,1973.8,1973.2,0.60194557]
[1771722078524,0.56933297,1973.8,1973.2,0.60194557]
[1771722078723,0.00460343,1973.8,1973.2,0.60194557]
[1771722079421,0.56933297,1973.8,1973.2,0.60194557]
[1771722084617,0.00460343,1973.8,1973.2,0.60194557]
[1771722086822,0.56933297,1973.8,1973.2,0.60194557]
[1771722091425,0.56933297,1973.8,1972.8,0.60194557]
[1771722096727,0.56933297,1973.8,1972.8,8.57356777]
[1771722096928,0.56933297,1973.8,1972.9,0.60194557]
[1771722101330,0.56933297,1973.8,1972.9,8.57356777]
[1771722101526,0.56933297,1973.8,1973.0,0.60264746]
[1771722103231,0.56933297,1973.8,1973.1,0.60264746]
[1771722111834,0.56933297,1973.8,1973.2,0.60264746]
[1771722113330,0.58256752,1974.4,1973.4,0.60264746]
[1771722113530,1.05226192,1974.3,1973.5,0.60264746]
[1771722113834,0.58256752,1974.3,1973.6,0.60264746]
[1771722114338,0.58913673,1974.3,1973.6,0.60760161]
[1771722115230,0.58913673,1974.3,1973.6,0.00495415]
[1771722115636,0.58913673,1974.3,1973.6,0.60760161]
[1771722124045,0.00656921,1974.3,1973.6,0.60760161]
[1771722125345,0.58913673,1974.3,1973.6,0.60760161]
[1771722126748,0.00656921,1974.3,1973.6,0.60760161]
[1771722127847,0.00656921,1974.3,1973.6,8.57922381]
[1771722128050,0.00656921,1974.3,1973.7,0.56849156]
[1771722128443,0.58256752,1974.6,1973.7,0.56849156]
[1771722128743,4.24001166,1975.2,1973.7,0.56849156]
[1771722128952,0.58071113,1975.0,1973.7,0.56849156]
[1771722129146,0.58071113,1974.8,1973.7,0.56849156]
[1771722129544,0.58691436,1974.8,1973.8,0.56849156]
[1771722133748,0.00620323,1974.8,1973.8,0.56849156]
[1771722134052,0.59114643,1974.8,1974.0,0.58513144]
[1771722134955,0.5849432,1975.1,1974.1,0.58513144]
[1771722135248,0.5849432,1975.6,1974.1,0.58513144]
[1771722135554,0.5849432,1975.4,1974.1,0.58513144]
[1771722135949,0.5849432,1975.4,1974.2,0.58513144]
[1771722136155,0.58898781,1975.4,1974.2,0.58513144]
[1771722137756,0.58898781,1975.4,1974.3,0.25335]
[1771722137953,0.58898781,1975.4,1974.4,0.58513144]
[1771722138550,0.00404461,1975.4,1974.4,0.58513144]
[1771722140555,0.00404461,1975.4,1974.6,0.58513144]
[1771722140757,0.5849432,1975.7,1974.6,0.58513144]
[1771722141857,0.59072009,1975.7,1974.6,0.58513144]
[1771722147562,0.59072009,1975.7,1974.8,0.58513144]
[1771722148757,0.00577689,1975.7,1974.8,0.58513144]
[1771722148963,0.59072009,1975.7,1974.8,0.58513144]
[1771722157871,0.00577689,1975.7,1974.8,0.58513144]
[1771722158369,0.00577689,1975.7,1975.0,0.58166697]
[1771722158567,0.58148642,1975.7,1975.0,0.58636738]
[1771722163378,0.00577689,1975.7,1975.1,0.58166697]
[1771722163572,0.32519738,1975.8,1975.2,0.58166697]
[1771722163877,0.57570953,1976.4,1975.4,0.58166697]
[1771722164571,0.58031627,1976.4,1975.4,0.58166697]
[1771722165276,0.58031627,1976.4,1975.3,0.58166697]
[1771722165277,0.57570953,1976.2,1975.3,0.58166697]
[1771722169676,0.57570953,1976.2,1975.1,8.80652917]
[1771722169980,0.57570953,1976.0,1975.1,0.83490697]
[1771722170377,0.57570953,1976.0,1975.2,0.58166697]
[1771722172675,0.57570953,1976.0,1975.1,0.58166697]
[1771722172881,0.57570953,1975.8,1975.0,0.00470041]
[1771722174888,0.57570953,1975.6,1974.7,0.58166697]
[1771722175184,0.57570953,1975.6,1974.6,0.25331]
[1771722175185,0.57570953,1975.6,1974.6,0.83497697]
[1771722175583,0.57570953,1975.6,1974.6,0.58166697]
[1771722175781,0.57570953,1975.4,1974.6,0.58166697]
[1771722175986,0.57570953,1975.4,1974.6,0.58762114]
[1771722181985,0.57570953,1975.4,1974.6,0.00595417]
[1771722183292,0.57570953,1975.4,1974.6,0.58762114]
[1771722184792,0.57570953,1975.4,1974.6,0.00595417]
[1771722185588,0.57570953,1975.2,1974.2,0.58166697]
[1771722186596,0.57570953,1975.2,1974.2,0.58553052]
[1771722205404,0.58017047,1975.0,1974.2,0.58553052]
[1771722205606,0.58543509,1975.0,1974.2,0.58553052]
[1771722210514,0.47320002,1974.9,1974.2,0.00386355]
[1771722210810,1.0533737,1974.8,1974.2,0.00386355]
[1771722211016,0.58017047,1974.7,1973.9,0.58751492]
[1771722211917,0.58017047,1974.7,1973.9,0.59189233]
[1771722212319,0.58017047,1974.5,1973.9,0.59189233]
[1771722214821,0.58017047,1974.5,1973.9,0.00437741]
[1771722215009,0.58017047,1974.5,1973.9,0.59189233]
[1771722218021,0.56793216,1974.9,1973.9,0.59189233]
[1771722221418,0.56793216,1974.9,1974.1,0.55903894]
[1771722246444,0.56793216,1974.7,1974.1,0.55903894]
[1771722267364,0.56631901,1974.5,1974.1,0.55903894]
[1771722270360,0.56631901,1974.6,1974.1,0.55903894]
[1771722301685,0.58646197,1975.0,1974.3,0.58089562]
[1771722301984,0.00526462,1975.0,1974.3,0.58089562]
[1771722302186,0.58646197,1975.0,1974.3,0.58089562]
[1771722316893,0.58646197,1975.0,1974.5,0.59237601]
[1771722317199,0.00526462,1975.0,1974.5,0.59237601]
[1771722317991,0.55613015,1975.4,1974.5,0.59237601]
[1771722319002,0.56073414,1975.4,1974.5,0.59237601]
[1771722319395,0.56073414,1975.4,1974.6,0.59237601]
[1771722324402,0.56073414,1975.4,1974.8,8.52403534]
[1771722324607,0.00460399,1975.4,1974.9,0.59237601]
[1771722326814,0.56073414,1975.4,1974.9,0.59237601]
[1771722336018,0.00460399,1975.4,1974.9,0.59237601]
[1771722336414,0.55613015,1975.7,1974.9,0.59237601]
[1771722337417,0.56070935,1975.7,1975.0,0.59237601]
[1771722339018,0.56070935,1975.7,1975.1,0.59033457]
[1771722339217,0.59718633,1975.7,1975.1,0.59033457]
[1771722339417,0.0045792,1975.7,1975.1,0.59033457]
[1771722342326,0.59718633,1975.7,1975.1,0.59033457]
[1771722346722,0.59718633,1975.7,1975.0,7.93165933]
[1771722347027,0.59718633,1975.7,1974.7,0.2533]
[1771722347028,0.59718633,1975.7,1974.8,0.59033457]
[1771722348430,0.59718633,1975.7,1974.8,8.5219939]
[1771722348826,0.59718633,1975.7,1974.8,7.93165933]
[1771722349022,0.59718633,1975.7,1974.7,8.7752939]
[1771722349622,0.59260713,1975.5,1974.6,8.5219939]
[1771722349827,0.59260713,1975.5,1974.6,0.59033457]
[1771722360441,0.59260713,1975.6,1974.7,0.59033457]
[1771722360939,0.59260713,1975.6,1974.8,0.59033457]
[1771722371240,0.59260713,1975.6,1974.9,0.57936771]
[1771722377659,0.59260713,1975.6,1975.0,0.55845317]
[1771722380161,0.0045792,1975.7,1975.0,0.55845317]
[1771722380356,0.58115368,1975.7,1975.0,0.55845317]
[1771722382159,0.58115368,1975.7,1975.0,0.81170317]
[1771722382359,0.0045792,1975.7,1975.1,0.55845317]
[1771722383664,0.57657448,1976.0,1975.1,0.55845317]
[1771722384663,0.58184229,1976.0,1975.1,0.55845317]
[1771722385365,0.58184229,1976.0,1975.3,0.55845317]
[1771722385566,0.58184229,1976.0,1975.4,0.55845317]
[1771722385966,0.57657448,1976.6,1975.8,0.55845317]
[1771722386161,0.57657448,1976.6,1975.6,0.55845317]
[1771722386965,0.58248211,1976.6,1975.6,0.55845317]
[1771722389960,0.58248211,1976.6,1975.4,7.91389195]
[1771722390264,0.58248211,1976.6,1975.4,0.55845317]
[1771722391169,0.58248211,1976.6,1975.6,0.55845317]
[1771722406080,0.58248211,1976.6,1975.7,0.59643554]
[1771722409179,0.58248211,1976.6,1975.8,0.59643554]
[1771722410577,0.58248211,1976.6,1975.7,7.91389195]
[1771722410781,0.58248211,1976.6,1975.6,0.59643554]
[1771722411279,0.58248211,1976.6,1975.5,8.16709195]
[1771722411280,0.58248211,1976.6,1975.5,8.76352749]
[1771722411679,0.58248211,1976.6,1975.6,0.59643554]
[1771722411882,0.58248211,1976.6,1975.7,0.59643554]
[1771722415087,0.58248211,1976.6,1975.8,0.59643554]
[1771722421783,0.58248211,1976.6,1975.9,0.59643554]
[1771722429904,0.58248211,1976.6,1976.0,0.56062144]
[1771722432014,0.58248211,1976.6,1975.9,7.91389195]
[1771722432214,0.58248211,1976.6,1975.9,8.4761131]
[1771722432716,0.58248211,1976.6,1976.0,0.56222115]
[1771722440617,0.58248211,1976.6,1975.9,7.91389195]
[1771722440824,0.58248211,1976.6,1975.7,0.56222115]
[1771722443319,0.59043108,1976.6,1975.9,0.56222115]
[1771722444122,0.59043108,1976.6,1975.8,8.7292731]
[1771722444319,0.59043108,1976.6,1975.8,8.4761131]
[1771722444526,0.59043108,1976.6,1975.7,0.56222115]
[1771722445022,0.59043108,1976.6,1975.8,0.56222115]
[1771722446725,0.59043108,1976.6,1975.7,0.56222115]
[1771722446927,0.58452345,1976.4,1975.7,0.56222115]
[1771722450823,0.58452345,1976.4,1975.5,0.56222115]
[1771722453832,0.00590763,1976.6,1975.7,0.56222115]
[1771722453833,0.59043108,1976.6,1975.7,0.56222115]
[1771722458335,0.588915,1976.4,1975.5,0.5745879]
[1771722462437,0.588915,1976.4,1975.3,0.58053958]
[1771722462641,0.588915,1976.2,1975.3,0.58053958]
[1771722465135,0.588915,1976.0,1975.3,0.58053958]
[1771722466345,0.588915,1976.0,1975.0,0.8278379]
[1771722466540,0.588915,1975.8,1975.0,0.8278379]
[1771722466740,0.588915,1975.8,1975.0,0.5745879]
[1771722467438,0.588915,1975.8,1975.0,0.57976036]
[1771722467642,0.588915,1975.8,1975.0,0.00517246]
[1771722470948,0.588915,1975.8,1975.0,0.57976036]
[1771722471549,0.588915,1975.6,1974.4,0.5745879]
[1771722471843,0.588915,1975.4,1974.4,0.5745879]
[1771722472546,0.588915,1975.4,1974.4,0.57818755]
[1771722487664,0.588915,1975.2,1974.4,0.00359965]
[1771722487854,0.59333678,1975.2,1974.4,0.00359965]
[1771722489558,0.59333678,1975.2,1974.4,0.56230735]
[1771722492861,0.59118145,1975.0,1974.4,0.00359965]
[1771722493254,0.59560323,1975.2,1974.4,0.58466436]
[1771722493458,13.25682176,1976.3,1974.4,0.58466436]
[1771722493459,0.59118145,1975.8,1974.4,0.58466436]
[1771722493657,0.59118145,1975.6,1974.4,0.58466436]
[1771722493860,0.59118145,1975.6,1974.6,0.58106471]
[1771722494457,0.59487063,1975.6,1974.6,0.58106471]
[1771722500462,0.59118145,1975.4,1974.6,0.58106471]
[1771722507780,0.59118145,1975.4,1974.4,0.58466436]
[1771722507982,0.59118145,1975.2,1974.4,0.58466436]
[1771722508982,0.59118145,1975.0,1974.4,0.00359965]
[1771722509780,0.59118145,1975.0,1974.1,0.58106471]
[1771722510879,0.59118145,1975.0,1974.1,0.58687036]
[1771722526782,0.59118145,1975.0,1974.2,0.55935756]
[1771722534390,0.59118145,1975.0,1974.3,0.55935756]
[1771722543292,0.59118145,1975.0,1974.4,0.55935756]
[1771722544394,0.55520435,1974.8,1974.4,0.55935756]
[1771722556604,0.55520435,1974.8,1974.2,8.48461397]
[1771722557296,0.55520435,1974.8,1974.2,0.57072202]
[1771722557506,0.55520435,1974.8,1974.3,0.57072202]
[1771722568208,0.55520435,1974.8,1974.1,8.49041962]
[1771722568512,0.5901844,1974.6,1974.1,0.00580565]
[1771722574514,0.5901844,1975.0,1974.1,0.57652767]
[1771722574714,0.5901844,1974.8,1974.1,0.57652767]
[1771722579522,0.55155233,1974.9,1974.1,0.57652767]
[1771722583025,0.55155233,1974.9,1974.2,0.59634454]
[1771722589637,0.55155233,1974.9,1974.3,0.59634454]
[1771722605348,0.55155233,1974.9,1974.3,8.51023649]
[1771722606648,0.55155233,1974.9,1974.4,0.59634454]
[1771722612554,0.55155233,1974.9,1974.2,7.91389195]
[1771722612752,0.55155233,1974.9,1974.1,0.60057503]
[1771722612753,0.56839762,1974.7,1974.1,7.9196976]
[1771722614053,0.56839762,1974.7,1974.1,0.00580565]
[1771722616652,0.56839762,1974.7,1973.9,7.91389195]
[1771722616853,0.56839762,1974.5,1973.8,8.50866133]
[1771722617249,0.56839762,1974.5,1973.9,0.59476938]
[1771722617757,0.56839762,1974.5,1973.9,0.5991659]
[1771722618156,0.56839762,1974.5,1973.2,13.48116159]
[1771722618349,4.25314226,1975.1,1973.5,0.29134166]
[1771722618350,0.56839762,1974.3,1973.5,0.29134166]
[1771722618551,0.56839762,1974.2,1973.5,0.29134166]
[1771722619254,0.57355213,1974.2,1973.5,0.2974424]
[1771722624958,0.56839762,1974.9,1973.5,0.2974424]
[1771722625863,0.57221238,1974.9,1973.5,0.2974424]
[1771722636874,0.56839762,1974.7,1973.5,0.2974424]
[1771722638175,0.56839762,1974.7,1973.7,0.27115273]
[1771722639175,0.56839762,1974.7,1973.6,0.2826022]
[1771722643582,0.58592284,1974.5,1973.6,0.2826022]
[1771722663688,0.58592284,1974.3,1973.6,0.2826022]
[1771722664792,0.58592284,1974.3,1973.5,0.00610074]
[1771722666500,0.58592284,1974.3,1973.5,0.26576185]
[1771722674811,0.56225854,1974.7,1973.5,0.26576185]
[1771722675004,0.56225854,1974.5,1973.6,0.27024802]
[1771722680311,0.56225854,1974.5,1973.7,0.17757151]
[1771722681014,0.00381476,1974.9,1973.8,0.17757151]
[1771722681015,0.56225854,1974.8,1973.8,0.17757151]
[1771722685012,0.56225854,1974.8,1974.0,0.1513837]
[1771722692816,0.56225854,1974.8,1973.9,0.2534]
[1771722696518,0.56225854,1974.8,1973.9,0.40283331]
[1771722702624,0.56225854,1974.8,1974.0,0.15623153]
[1771722707328,0.56225854,1974.8,1974.0,8.06599705]
[1771722716936,0.56225854,1974.8,1974.1,0.16179139]
[1771722722037,0.56225854,1974.8,1974.0,8.0720431]
[1771722726950,0.56225854,1974.8,1974.1,0.16014197]
[1771722733452,0.56225854,1974.8,1974.1,8.06990749]
[1771722733647,0.56225854,1974.8,1974.1,0.16014197]
[1771722734755,0.56225854,1974.8,1974.1,8.06990749]
[1771722734948,0.56225854,1974.8,1974.1,0.16014197]
[1771722735353,0.56225854,1974.8,1974.1,8.06990749]
[1771722746266,0.56225854,1974.8,1974.2,0.15806691]
[1771722755371,0.56225854,1974.8,1974.0,7.90976552]
[1771722755566,0.58304165,1974.6,1974.0,7.90976552]
[1771722755765,0.58304165,1974.6,1973.9,8.32305591]
[1771722756372,0.58304165,1974.6,1973.9,0.41329039]
[1771722757474,0.58304165,1974.6,1974.0,0.16314851]
[1771722764581,0.58304165,1974.6,1973.9,0.2534]
[1771722765981,0.58304165,1974.6,1973.9,0.41723597]
[1771722766984,0.58304165,1974.6,1973.8,8.07360149]
[1771722767179,0.54394671,1974.4,1973.6,8.07685838]
[1771722767878,0.54394671,1974.4,1973.6,0.16709286]
[1771722769185,0.54394671,1974.4,1973.5,0.17355766]
[1771722780292,0.54394671,1974.4,1973.5,0.00610074]
[1771722780491,4.50162114,1974.8,1973.5,0.00610074]
[1771722780492,0.54394671,1974.2,1973.5,0.00610074]
[1771722781394,0.54394671,1974.2,1973.5,0.1628219]
[1771722785799,0.54394671,1974.2,1973.5,0.00610074]
[1771722788005,0.54394671,1974.2,1973.5,0.15489447]
[1771722794506,0.54394671,1974.2,1973.5,0.00610074]
[1771722797104,0.55351348,1974.0,1973.2,7.90976552]
[1771722798107,0.55351348,1974.0,1973.2,7.91575795]
[1771722798608,0.55351348,1974.0,1973.2,0.00599243]
[1771722801910,0.55351348,1973.8,1973.2,0.00599243]
[1771722802311,0.55351348,1973.8,1973.2,0.17551325]
[1771722807007,0.55351348,1973.8,1973.2,0.00599243]
[1771722810012,0.55351348,1973.8,1973.1,0.18509543]
[1771722810915,0.55351348,1973.8,1973.1,0.19100547]
[1771722813617,0.55351348,1973.8,1973.2,0.18335266]
[1771722814817,0.55351348,1974.8,1973.5,0.18335266]
[1771722815112,0.55351348,1974.6,1973.5,0.18335266]
[1771722824722,0.55351348,1974.6,1973.6,0.18375447]
[1771722840932,0.55351348,1974.6,1973.6,8.09351999]
[1771722841133,0.55351348,1974.6,1973.7,0.17402804]
[1771722843335,0.55351348,1974.6,1973.7,8.08379356]
[1771722844736,0.59016158,1974.4,1973.7,8.08379356]
[1771722850939,0.59016158,1974.4,1973.8,0.17343325]
[1771722856936,0.59016158,1974.4,1973.7,7.90976552]
[1771722857135,0.46625375,1974.3,1973.6,7.90976552]
[1771722857334,14.32876607,1974.9,1973.4,0.17002167]
[1771722857335,0.60034761,1974.2,1973.5,7.90976552]
[1771722857735,0.60034761,1974.2,1973.5,8.07980931]
[1771722862447,0.60034761,1974.2,1973.6,0.16732007]
[1771722862950,0.60034761,1974.2,1973.4,8.07708559]
[1771722864152,0.60034761,1974.2,1973.5,0.16449087]
[1771722886165,0.60034761,1974.2,1973.5,8.07425639]
[1771722887563,0.60034761,1974.2,1973.6,0.16839408]
[1771722895767,0.60034761,1974.2,1973.5,8.07884766]
[1771722898368,0.60034761,1974.2,1973.4,8.07665685]
[1771722899473,0.60034761,1974.2,1973.5,0.16735505]
[1771722903677,0.60034761,1974.2,1973.5,0.17095977]
[1771722907878,0.60034761,1974.2,1973.5,8.08072529]
[1771722908585,0.60034761,1974.2,1973.6,0.17953706]
[1771722913993,0.60034761,1974.2,1973.7,0.18178693]
[1771722915489,6.36967737,1974.8,1973.8,0.1857446]
[1771722915490,0.56264855,1974.6,1973.8,0.1857446]